[Event "Early-Titled-Tuesday-Blitz-August-29-2023"]
[Site "Chess.com"]
[Date "2023.08.29"]
[Round "8"]
[White "TigrVShlyape"]
[Black "Sina_Movahed"]
[Result "0-1"]
[WhiteElo "2900"]
[BlackElo "2983"]
[TimeControl "180+1"]
[EndTime "9:28:02 PDT"]
[Termination "Sina_Movahed won on time"]

1. d4 {[%clk 0:03:00.9]} 1... Nf6 {[%clk 0:03:00.2]} 2. Bf4 {[%clk 0:02:58.2]}
2... g6 {[%clk 0:02:58.8]} 3. c3 {[%clk 0:02:57.7]} 3... Bg7 {[%clk 0:02:59]} 4.
Nf3 {[%clk 0:02:58.3]} 4... O-O {[%clk 0:02:59.6]} 5. h3 {[%clk 0:02:57.8]} 5...
d5 {[%clk 0:02:59.9]} 6. e3 {[%clk 0:02:57.4]} 6... c5 {[%clk 0:03:00.5]} 7.
Nbd2 {[%clk 0:02:57.7]} 7... cxd4 {[%clk 0:03:00.3]} 8. exd4 {[%clk 0:02:56.9]}
8... Qb6 {[%clk 0:03:00.6]} 9. Qb3 {[%clk 0:02:55.1]} 9... Qe6+ {[%clk
0:03:00.9]} 10. Be2 {[%clk 0:02:53]} 10... Nh5 {[%clk 0:03:01]} 11. Bh2 {[%clk
0:02:19.5]} 11... Nc6 {[%clk 0:02:57.9]} 12. Qd1 {[%clk 0:02:11.2]} 12... Qf6
{[%clk 0:02:53.8]} 13. O-O {[%clk 0:02:05.7]} 13... Nf4 {[%clk 0:02:54.3]} 14.
Re1 {[%clk 0:02:01.8]} 14... Re8 {[%clk 0:02:45.4]} 15. Bf1 {[%clk 0:02:00.6]}
15... a6 {[%clk 0:02:42.7]} 16. a4 {[%clk 0:01:59.6]} 16... Bh6 {[%clk
0:02:36.6]} 17. a5 {[%clk 0:01:49.5]} 17... Bf5 {[%clk 0:02:31.2]} 18. Re3
{[%clk 0:01:33.8]} 18... g5 {[%clk 0:02:00]} 19. Ne5 {[%clk 0:01:27.8]} 19...
Nxe5 {[%clk 0:02:00.1]} 20. dxe5 {[%clk 0:01:25.3]} 20... Qg7 {[%clk 0:01:58.7]}
21. Nb3 {[%clk 0:01:13.8]} 21... Be4 {[%clk 0:01:44.9]} 22. Nd4 {[%clk
0:01:05.3]} 22... e6 {[%clk 0:01:45.3]} 23. Qg4 {[%clk 0:00:58.3]} 23... Qg6
{[%clk 0:01:38.1]} 24. Ree1 {[%clk 0:00:50]} 24... Bg7 {[%clk 0:01:36.4]} 25.
Bxf4 {[%clk 0:00:46.4]} 25... gxf4 {[%clk 0:01:37.3]} 26. Qxg6 {[%clk
0:00:35.6]} 26... Bxg6 {[%clk 0:01:33.3]} 27. Ra4 {[%clk 0:00:33.9]} 27... Rab8
{[%clk 0:01:29.1]} 28. Nf3 {[%clk 0:00:26.6]} 28... b6 {[%clk 0:01:25.1]} 29.
axb6 {[%clk 0:00:25.4]} 29... Rxb6 {[%clk 0:01:26]} 30. b4 {[%clk 0:00:25.5]}
30... Rc8 {[%clk 0:01:24.8]} 31. Ra3 {[%clk 0:00:23.7]} 31... Be4 {[%clk
0:01:11.8]} 32. Bxa6 {[%clk 0:00:18.8]} 32... Ra8 {[%clk 0:01:11.7]} 33. b5
{[%clk 0:00:19.1]} 33... Bf8 {[%clk 0:01:08.4]} 34. Ra4 {[%clk 0:00:18.6]} 34...
Bc5 {[%clk 0:01:02]} 35. Ng5 {[%clk 0:00:17.8]} 35... Bd3 {[%clk 0:00:57.8]} 36.
Rxf4 {[%clk 0:00:17.8]} 36... Ra7 {[%clk 0:00:58.3]} 37. Kh2 {[%clk 0:00:16.9]}
37... h6 {[%clk 0:00:52.8]} 38. Nf3 {[%clk 0:00:16.3]} 38... Bxf2 {[%clk
0:00:51.6]} 39. Rd1 {[%clk 0:00:16.3]} 39... Bxb5 {[%clk 0:00:50.2]} 40. Bxb5
{[%clk 0:00:16]} 40... Rxb5 {[%clk 0:00:51.1]} 41. Nd4 {[%clk 0:00:16.1]} 41...
Rb2 {[%clk 0:00:49.4]} 42. Rf1 {[%clk 0:00:14.8]} 42... Raa2 {[%clk 0:00:48.5]}
43. Rg4+ {[%clk 0:00:14.3]} 43... Kf8 {[%clk 0:00:48.1]} 44. h4 {[%clk
0:00:13.6]} 44... Ke7 {[%clk 0:00:43.6]} 45. Nf3 {[%clk 0:00:12.2]} 45... Rc2
{[%clk 0:00:37.6]} 46. Rb1 {[%clk 0:00:11.2]} 46... Ra7 {[%clk 0:00:35.7]} 47.
Rb3 {[%clk 0:00:10.7]} 47... Rc7 {[%clk 0:00:34.8]} 48. Rf4 {[%clk 0:00:08.4]}
48... R2xc3 {[%clk 0:00:34.5]} 49. Rxc3 {[%clk 0:00:07.5]} 49... Rxc3 {[%clk
0:00:35.4]} 50. g3 {[%clk 0:00:06.3]} 50... Rc4 {[%clk 0:00:28.1]} 51. Kg2
{[%clk 0:00:05.6]} 51... Be3 {[%clk 0:00:27.4]} 52. Rf6 {[%clk 0:00:04.7]} 52...
d4 {[%clk 0:00:21.5]} 53. Ne1 {[%clk 0:00:04.6]} 53... Rc1 {[%clk 0:00:20.6]}
54. Rf1 {[%clk 0:00:04.1]} 54... Rc3 {[%clk 0:00:19.8]} 55. Rf3 {[%clk
0:00:03.4]} 55... Bd2 {[%clk 0:00:18.9]} 56. Nd3 {[%clk 0:00:03.4]} 56... Be3
{[%clk 0:00:18.6]} 57. Ne1 {[%clk 0:00:03.4]} 57... Rc1 {[%clk 0:00:17.8]} 58.
Rf1 {[%clk 0:00:03.4]} 58... Rd1 {[%clk 0:00:17.5]} 59. Kf3 {[%clk 0:00:03.5]}
59... Bd2 {[%clk 0:00:17.1]} 60. Ke2 {[%clk 0:00:03.6]} 60... Rxe1+ {[%clk
0:00:17]} 61. Rxe1 {[%clk 0:00:03.9]} 61... Bxe1 {[%clk 0:00:17.9]} 62. Kxe1
{[%clk 0:00:04.4]} 62... f6 {[%clk 0:00:18.8]} 63. exf6+ {[%clk 0:00:03.5]}
63... Kxf6 {[%clk 0:00:19.7]} 64. g4 {[%clk 0:00:04]} 64... e5 {[%clk
0:00:20.3]} 65. Ke2 {[%clk 0:00:04.2]} 65... e4 {[%clk 0:00:20.2]} 66. Kf2
{[%clk 0:00:04.6]} 66... Ke5 {[%clk 0:00:20.6]} 0-1

[Event "Early-Titled-Tuesday-Blitz-August-29-2023"]
[Site "Chess.com"]
[Date "2023.08.29"]
[Round "8"]
[White "Chessmissile07"]
[Black "noblerone"]
[Result "1-0"]
[WhiteElo "2823"]
[BlackElo "2553"]
[TimeControl "180+1"]
[EndTime "9:28:07 PDT"]
[Termination "Chessmissile07 won by resignation"]

1. d4 {[%clk 0:03:00.9]} 1... d5 {[%clk 0:02:58.5]} 2. c4 {[%clk 0:03:00.6]}
2... c6 {[%clk 0:02:53.4]} 3. Nf3 {[%clk 0:02:58.9]} 3... Nf6 {[%clk 0:02:51.9]}
4. g3 {[%clk 0:02:59.3]} 4... g6 {[%clk 0:02:43.6]} 5. Bg2 {[%clk 0:02:59.5]}
5... Bg7 {[%clk 0:02:43.3]} 6. O-O {[%clk 0:03:00.1]} 6... O-O {[%clk
0:02:43.7]} 7. cxd5 {[%clk 0:02:56.6]} 7... cxd5 {[%clk 0:02:43.4]} 8. Ne5
{[%clk 0:02:56.4]} 8... e6 {[%clk 0:02:38.4]} 9. b3 {[%clk 0:02:54.9]} 9... Bd7
{[%clk 0:02:32.8]} 10. Nc3 {[%clk 0:02:38.8]} 10... Nc6 {[%clk 0:02:32]} 11.
Nxd7 {[%clk 0:02:38.9]} 11... Qxd7 {[%clk 0:02:30.4]} 12. Ba3 {[%clk 0:02:39.5]}
12... Rfc8 {[%clk 0:02:28.6]} 13. Rc1 {[%clk 0:02:28.4]} 13... Bf8 {[%clk
0:02:07.3]} 14. Bb2 {[%clk 0:02:25.5]} 14... b6 {[%clk 0:02:03.5]} 15. e4 {[%clk
0:02:24.5]} 15... dxe4 {[%clk 0:02:00.9]} 16. Nxe4 {[%clk 0:02:25.4]} 16... Nxe4
{[%clk 0:02:00]} 17. Bxe4 {[%clk 0:02:26.3]} 17... Bg7 {[%clk 0:01:54]} 18. Qf3
{[%clk 0:02:25.2]} 18... Nxd4 {[%clk 0:01:31.3]} 19. Bxd4 {[%clk 0:02:22.5]}
19... Rxc1 {[%clk 0:01:29.1]} 20. Rxc1 {[%clk 0:02:23.4]} 20... Rd8 {[%clk
0:01:24.2]} 21. Bxg7 {[%clk 0:02:22.1]} 21... Kxg7 {[%clk 0:01:25.1]} 22. Qc3+
{[%clk 0:02:19.9]} 22... Qd4 {[%clk 0:01:24.3]} 23. Kg2 {[%clk 0:02:06.7]} 23...
e5 {[%clk 0:01:16.8]} 24. Qxd4 {[%clk 0:02:06.3]} 24... Rxd4 {[%clk 0:01:17.7]}
25. Bf3 {[%clk 0:02:04.3]} 25... e4 {[%clk 0:01:16.9]} 26. Bd1 {[%clk
0:01:59.3]} 26... Rd2 {[%clk 0:01:14.6]} 27. Kf1 {[%clk 0:01:35.7]} 27... Rxa2
{[%clk 0:01:03.9]} 28. Bc2 {[%clk 0:01:35.3]} 28... f5 {[%clk 0:01:03]} 29. Ke2
{[%clk 0:01:35.4]} 29... Kf6 {[%clk 0:01:00]} 30. Kd2 {[%clk 0:01:35.3]} 30...
Ke5 {[%clk 0:00:59.4]} 31. Kc3 {[%clk 0:01:35.5]} 31... a5 {[%clk 0:00:53.8]}
32. Kc4 {[%clk 0:00:59.6]} 32... Rb2 {[%clk 0:00:49.6]} 33. Kc3 {[%clk
0:00:37.1]} 33... Ra2 {[%clk 0:00:49.6]} 34. b4 {[%clk 0:00:37.5]} 34... axb4+
{[%clk 0:00:49.2]} 35. Kxb4 {[%clk 0:00:38.4]} 35... g5 {[%clk 0:00:41.4]} 36.
Kb3 {[%clk 0:00:37.7]} 36... Ra5 {[%clk 0:00:37.7]} 37. Re1 {[%clk 0:00:36.5]}
37... Rb5+ {[%clk 0:00:35]} 38. Kc3 {[%clk 0:00:34.3]} 38... Rc5+ {[%clk
0:00:35.4]} 39. Kb2 {[%clk 0:00:34.3]} 39... Kd4 {[%clk 0:00:34.4]} 40. g4
{[%clk 0:00:31]} 40... Rb5+ {[%clk 0:00:20.3]} 41. Kc1 {[%clk 0:00:30.3]} 41...
Ra5 {[%clk 0:00:13.1]} 42. gxf5 {[%clk 0:00:28]} 42... Rxf5 {[%clk 0:00:09.7]}
43. Rxe4+ {[%clk 0:00:27.4]} 43... Kd5 {[%clk 0:00:08.5]} 44. Re2 {[%clk
0:00:19.9]} 44... Rf4 {[%clk 0:00:09]} 45. Bxh7 {[%clk 0:00:14]} 45... Rh4
{[%clk 0:00:09.6]} 46. Bf5 {[%clk 0:00:09.4]} 46... Rxh2 {[%clk 0:00:08.2]} 47.
Kd2 {[%clk 0:00:09.9]} 47... Rh4 {[%clk 0:00:07.3]} 48. f3 {[%clk 0:00:10]}
48... Rd4+ {[%clk 0:00:06.7]} 49. Ke3 {[%clk 0:00:09]} 49... Ra4 {[%clk
0:00:07.6]} 50. Bg4 {[%clk 0:00:08.5]} 50... Ra3+ {[%clk 0:00:07.5]} 51. Kf2
{[%clk 0:00:08.9]} 51... b5 {[%clk 0:00:07.5]} 52. Re8 {[%clk 0:00:07.3]} 52...
b4 {[%clk 0:00:07.6]} 53. Rb8 {[%clk 0:00:07.8]} 53... b3 {[%clk 0:00:06.6]} 54.
Ke2 {[%clk 0:00:06.6]} 54... Kd4 {[%clk 0:00:06.8]} 55. Kd2 {[%clk 0:00:02.9]}
55... Ra2+ {[%clk 0:00:07]} 56. Kc1 {[%clk 0:00:03.4]} 56... Rc2+ {[%clk
0:00:06.7]} 57. Kb1 {[%clk 0:00:03.4]} 57... Kc3 {[%clk 0:00:07.2]} 58. Rc8+
{[%clk 0:00:03.2]} 58... Kb4 {[%clk 0:00:07.6]} 59. Rxc2 {[%clk 0:00:03.2]}
59... bxc2+ {[%clk 0:00:06.6]} 60. Kxc2 {[%clk 0:00:04.1]} 60... Kc4 {[%clk
0:00:06.9]} 61. Kd2 {[%clk 0:00:04.6]} 61... Kd4 {[%clk 0:00:07.8]} 62. Ke2
{[%clk 0:00:05.4]} 62... Ke5 {[%clk 0:00:06.6]} 63. Ke3 {[%clk 0:00:06.3]} 1-0

[Event "Early-Titled-Tuesday-Blitz-August-29-2023"]
[Site "Chess.com"]
[Date "2023.08.29"]
[Round "8"]
[White "Chessbard1972"]
[Black "AradNazari"]
[Result "1-0"]
[WhiteElo "2563"]
[BlackElo "2740"]
[TimeControl "180+1"]
[EndTime "9:28:08 PDT"]
[Termination "Chessbard1972 won by checkmate"]

1. d4 {[%clk 0:03:00.9]} 1... Nf6 {[%clk 0:02:59.7]} 2. c4 {[%clk 0:03:00.5]}
2... g6 {[%clk 0:03:00]} 3. Nf3 {[%clk 0:03:00.4]} 3... Bg7 {[%clk 0:03:00]} 4.
g3 {[%clk 0:03:00.5]} 4... O-O {[%clk 0:03:00.1]} 5. Bg2 {[%clk 0:03:00.9]} 5...
c6 {[%clk 0:03:00.7]} 6. Nc3 {[%clk 0:03:00.1]} 6... d5 {[%clk 0:03:01.2]} 7.
cxd5 {[%clk 0:03:00.5]} 7... cxd5 {[%clk 0:03:02.1]} 8. Ne5 {[%clk 0:03:00.7]}
8... Nc6 {[%clk 0:03:01.7]} 9. O-O {[%clk 0:02:55.7]} 9... h5 {[%clk 0:03:02.3]}
10. Bg5 {[%clk 0:02:54.3]} 10... Bf5 {[%clk 0:03:01.5]} 11. Qd2 {[%clk
0:02:53.5]} 11... Rc8 {[%clk 0:02:57.4]} 12. Rad1 {[%clk 0:02:46.9]} 12... Re8
{[%clk 0:02:44.8]} 13. Nxc6 {[%clk 0:02:43.1]} 13... bxc6 {[%clk 0:02:44.2]} 14.
Rc1 {[%clk 0:02:33.7]} 14... Nh7 {[%clk 0:02:36.1]} 15. Bh6 {[%clk 0:02:31.6]}
15... Bf6 {[%clk 0:02:29.4]} 16. h4 {[%clk 0:02:28.2]} 16... Qa5 {[%clk
0:02:22.8]} 17. Rfd1 {[%clk 0:02:16.3]} 17... e5 {[%clk 0:02:12.5]} 18. dxe5
{[%clk 0:02:12.5]} 18... Bxe5 {[%clk 0:02:13.4]} 19. e4 {[%clk 0:01:59.5]} 19...
Bg4 {[%clk 0:02:02.6]} 20. Re1 {[%clk 0:01:51.7]} 20... d4 {[%clk 0:01:59.8]}
21. Ne2 {[%clk 0:01:40.7]} 21... Qxd2 {[%clk 0:01:54.7]} 22. Bxd2 {[%clk
0:01:38.2]} 22... c5 {[%clk 0:01:51.1]} 23. b3 {[%clk 0:01:36.7]} 23... Nf6
{[%clk 0:01:38.5]} 24. Nf4 {[%clk 0:01:36]} 24... Bxf4 {[%clk 0:01:13.2]} 25.
Bxf4 {[%clk 0:01:34.2]} 25... Nd7 {[%clk 0:01:11.9]} 26. f3 {[%clk 0:01:33.2]}
26... Be6 {[%clk 0:01:11.8]} 27. Bf1 {[%clk 0:01:30.8]} 27... Nb6 {[%clk
0:01:04.9]} 28. Ba6 {[%clk 0:01:27.7]} 28... Rcd8 {[%clk 0:00:28.4]} 29. Rxc5
{[%clk 0:01:25.7]} 29... d3 {[%clk 0:00:27.7]} 30. Rd1 {[%clk 0:01:25.4]} 30...
f5 {[%clk 0:00:22]} 31. Rxd3 {[%clk 0:01:21.9]} 31... fxe4 {[%clk 0:00:21.7]}
32. fxe4 {[%clk 0:01:20.8]} 32... Rxd3 {[%clk 0:00:19.8]} 33. Bxd3 {[%clk
0:01:20.2]} 33... Rd8 {[%clk 0:00:20.5]} 34. Bc2 {[%clk 0:01:12.9]} 34... Bf7
{[%clk 0:00:19.3]} 35. Rc7 {[%clk 0:01:11.2]} 35... a5 {[%clk 0:00:15.7]} 36.
Bg5 {[%clk 0:01:07.5]} 36... Ra8 {[%clk 0:00:12.9]} 37. Be3 {[%clk 0:01:05.5]}
37... Nc8 {[%clk 0:00:10.2]} 38. Bc5 {[%clk 0:01:02.1]} 38... Rb8 {[%clk
0:00:06.9]} 39. a3 {[%clk 0:00:57.8]} 39... Nb6 {[%clk 0:00:05.9]} 40. Kf2
{[%clk 0:00:47.4]} 40... Be6 {[%clk 0:00:05.9]} 41. Ke3 {[%clk 0:00:46.1]} 41...
Nd7 {[%clk 0:00:06.4]} 42. Ba7 {[%clk 0:00:42.5]} 42... Re8 {[%clk 0:00:04.4]}
43. b4 {[%clk 0:00:39.8]} 43... axb4 {[%clk 0:00:04.5]} 44. axb4 {[%clk
0:00:39.9]} 44... Ne5 {[%clk 0:00:05.2]} 45. Bd4 {[%clk 0:00:37.3]} 45... Nc4+
{[%clk 0:00:05.7]} 46. Kd3 {[%clk 0:00:32.9]} 46... Nd6 {[%clk 0:00:05.9]} 47.
Rg7+ {[%clk 0:00:28.8]} 47... Kf8 {[%clk 0:00:06.5]} 48. Rxg6 {[%clk 0:00:28]}
48... Nxe4 {[%clk 0:00:06.9]} 49. Rh6 {[%clk 0:00:19.6]} 49... Bf5 {[%clk
0:00:05.1]} 50. Rh8+ {[%clk 0:00:17.6]} 50... Kf7 {[%clk 0:00:05.5]} 51. Rxe8
{[%clk 0:00:17.7]} 51... Nd6+ {[%clk 0:00:03.1]} 52. Kc3 {[%clk 0:00:15.6]}
52... Nb5+ {[%clk 0:00:03.7]} 53. Kc4 {[%clk 0:00:11.7]} 53... Bxc2 {[%clk
0:00:04.1]} 54. Re1 {[%clk 0:00:08.4]} 54... Nd6+ {[%clk 0:00:02.5]} 55. Kd5
{[%clk 0:00:07.7]} 55... Nb5 {[%clk 0:00:02.7]} 56. Rf1+ {[%clk 0:00:07.3]}
56... Ke8 {[%clk 0:00:02.9]} 57. Bc5 {[%clk 0:00:07.4]} 57... Bd3 {[%clk
0:00:03.4]} 58. Rf6 {[%clk 0:00:06.8]} 58... Kd7 {[%clk 0:00:03.7]} 59. Rh6
{[%clk 0:00:06.7]} 59... Be2 {[%clk 0:00:04.1]} 60. Rh7+ {[%clk 0:00:06.7]}
60... Kc8 {[%clk 0:00:04.7]} 61. Kc6 {[%clk 0:00:06.4]} 61... Kd8 {[%clk
0:00:04.6]} 62. Rh8# {[%clk 0:00:06]} 1-0

[Event "Early-Titled-Tuesday-Blitz-August-29-2023"]
[Site "Chess.com"]
[Date "2023.08.29"]
[Round "8"]
[White "PeshkaCh"]
[Black "Doomfist26"]
[Result "0-1"]
[WhiteElo "2783"]
[BlackElo "2603"]
[TimeControl "180+1"]
[EndTime "9:28:11 PDT"]
[Termination "Doomfist26 won by checkmate"]

1. Nf3 {[%clk 0:03:00.9]} 1... Nf6 {[%clk 0:02:59.9]} 2. d4 {[%clk 0:02:59.9]}
2... g6 {[%clk 0:02:57.3]} 3. c4 {[%clk 0:02:58.8]} 3... Bg7 {[%clk 0:02:56.6]}
4. g3 {[%clk 0:02:59.4]} 4... c5 {[%clk 0:02:56.5]} 5. Bg2 {[%clk 0:02:59.6]}
5... cxd4 {[%clk 0:02:56.9]} 6. Nxd4 {[%clk 0:03:00.5]} 6... h5 {[%clk
0:02:57.4]} 7. h4 {[%clk 0:02:57.3]} 7... Nc6 {[%clk 0:02:51.2]} 8. Nc3 {[%clk
0:02:57.2]} 8... O-O {[%clk 0:02:51.5]} 9. O-O {[%clk 0:02:55.3]} 9... Ng4
{[%clk 0:02:43.3]} 10. Nxc6 {[%clk 0:02:53.3]} 10... dxc6 {[%clk 0:02:43.7]} 11.
Qc2 {[%clk 0:02:08.2]} 11... Qd4 {[%clk 0:02:35.5]} 12. Qe4 {[%clk 0:01:57.1]}
12... Be6 {[%clk 0:02:27.5]} 13. Bg5 {[%clk 0:01:42.4]} 13... Rfe8 {[%clk
0:02:20.3]} 14. Rad1 {[%clk 0:01:39.2]} 14... Qxe4 {[%clk 0:02:17]} 15. Nxe4
{[%clk 0:01:40.1]} 15... Bxc4 {[%clk 0:02:16.9]} 16. Rd7 {[%clk 0:01:38.2]}
16... Bxe2 {[%clk 0:02:11.2]} 17. Re1 {[%clk 0:01:36.9]} 17... Bc4 {[%clk
0:02:00.5]} 18. Rxb7 {[%clk 0:01:33.3]} 18... Bxa2 {[%clk 0:01:45.4]} 19. Bxe7
{[%clk 0:00:57]} 19... Reb8 {[%clk 0:01:11.3]} 20. Rxb8+ {[%clk 0:00:42.9]}
20... Rxb8 {[%clk 0:01:11.4]} 21. Bc5 {[%clk 0:00:43.8]} 21... Bd5 {[%clk
0:00:59.9]} 22. Bxa7 {[%clk 0:00:36.4]} 22... Rxb2 {[%clk 0:00:59.2]} 23. Ng5
{[%clk 0:00:37]} 23... Bc3 {[%clk 0:00:43.1]} 24. Re8+ {[%clk 0:00:30.2]} 24...
Kg7 {[%clk 0:00:43.4]} 25. Bxd5 {[%clk 0:00:28.9]} 25... cxd5 {[%clk 0:00:42.1]}
26. Re7 {[%clk 0:00:29.6]} 26... Nh6 {[%clk 0:00:32.7]} 27. Rd7 {[%clk
0:00:28.6]} 27... Ra2 {[%clk 0:00:28.4]} 28. Be3 {[%clk 0:00:25.9]} 28... Bf6
{[%clk 0:00:25.6]} 29. Rxd5 {[%clk 0:00:10.9]} 29... Ng4 {[%clk 0:00:20.2]} 30.
Bc5 {[%clk 0:00:08.8]} 30... Rc2 {[%clk 0:00:15.5]} 31. Ne4 {[%clk 0:00:08.9]}
31... Bb2 {[%clk 0:00:11.4]} 32. Nd6 {[%clk 0:00:04.4]} 32... Nf6 {[%clk
0:00:10.9]} 33. Rd3 {[%clk 0:00:02.2]} 33... Rxc5 {[%clk 0:00:10.8]} 34. Rf3
{[%clk 0:00:02.8]} 34... Rd5 {[%clk 0:00:10.4]} 35. Nc4 {[%clk 0:00:02.7]} 35...
Bd4 {[%clk 0:00:10]} 36. Kg2 {[%clk 0:00:02.9]} 36... Ng4 {[%clk 0:00:09.9]} 37.
Rd3 {[%clk 0:00:02.9]} 37... Nxf2 {[%clk 0:00:07.4]} 38. Rd2 {[%clk 0:00:03.6]}
38... Ne4 {[%clk 0:00:07.5]} 39. Rd3 {[%clk 0:00:04.3]} 39... Nc5 {[%clk
0:00:08.1]} 40. Rd1 {[%clk 0:00:04.2]} 40... Ne6 {[%clk 0:00:08.8]} 41. Kf3
{[%clk 0:00:04.3]} 41... Rc5 {[%clk 0:00:09]} 42. Nd2 {[%clk 0:00:04.4]} 42...
Rc3+ {[%clk 0:00:09.2]} 43. Kg2 {[%clk 0:00:04]} 43... Rc2 {[%clk 0:00:09.1]}
44. Kf3 {[%clk 0:00:04.2]} 44... Rc3+ {[%clk 0:00:09.8]} 45. Ke4 {[%clk
0:00:04.8]} 45... Re3+ {[%clk 0:00:09.3]} 46. Kd5 {[%clk 0:00:05.1]} 46... Rxg3
{[%clk 0:00:09.4]} 47. Ne4 {[%clk 0:00:05.4]} 47... Rg4 {[%clk 0:00:10]} 48. Nd6
{[%clk 0:00:05.5]} 48... Rxh4 {[%clk 0:00:09.7]} 49. Rf1 {[%clk 0:00:05.5]}
49... Bc5 {[%clk 0:00:07.3]} 50. Rxf7+ {[%clk 0:00:05.1]} 50... Kh6 {[%clk
0:00:07.9]} 51. Ne8 {[%clk 0:00:03.1]} 51... Ng5 {[%clk 0:00:05.6]} 52. Rf6
{[%clk 0:00:02.6]} 52... Be7 {[%clk 0:00:05.6]} 53. Ra6 {[%clk 0:00:02.8]} 53...
Rh1 {[%clk 0:00:05.1]} 54. Ra7 {[%clk 0:00:02.1]} 54... Re1 {[%clk 0:00:05]} 55.
Kd4 {[%clk 0:00:01.8]} 55... h4 {[%clk 0:00:05.5]} 56. Kd3 {[%clk 0:00:02.3]}
56... h3 {[%clk 0:00:06.1]} 57. Ra4 {[%clk 0:00:02.8]} 57... Nf3 {[%clk
0:00:05.6]} 58. Rf4 {[%clk 0:00:02.4]} 58... h2 {[%clk 0:00:06]} 59. Rxf3 {[%clk
0:00:02.7]} 59... h1=Q {[%clk 0:00:06.4]} 60. Rf7 {[%clk 0:00:02.3]} 60... Qd5+
{[%clk 0:00:06.7]} 61. Kc3 {[%clk 0:00:02.5]} 61... Rc1+ {[%clk 0:00:06.3]} 62.
Kb2 {[%clk 0:00:02.6]} 62... Qd2+ {[%clk 0:00:06.8]} 63. Kb3 {[%clk 0:00:02.2]}
63... Qb4+ {[%clk 0:00:07]} 64. Ka2 {[%clk 0:00:02.2]} 64... Rc2+ {[%clk
0:00:07.7]} 65. Ka1 {[%clk 0:00:02.3]} 65... Qb2# {[%clk 0:00:08.4]} 0-1

[Event "Early-Titled-Tuesday-Blitz-August-29-2023"]
[Site "Chess.com"]
[Date "2023.08.29"]
[Round "8"]
[White "AttilaTurzo"]
[Black "Iskusnyh"]
[Result "1/2-1/2"]
[WhiteElo "2518"]
[BlackElo "2628"]
[TimeControl "180+1"]
[EndTime "9:28:20 PDT"]
[Termination "Game drawn - insufficient material"]

1. d4 {[%clk 0:03:00.9]} 1... d5 {[%clk 0:02:57.8]} 2. Nf3 {[%clk 0:03:01.2]}
2... Nf6 {[%clk 0:02:56.6]} 3. Bf4 {[%clk 0:03:01.8]} 3... c5 {[%clk 0:02:56.3]}
4. e3 {[%clk 0:03:00.9]} 4... Nc6 {[%clk 0:02:56.3]} 5. Nbd2 {[%clk 0:03:00.7]}
5... cxd4 {[%clk 0:02:55.5]} 6. exd4 {[%clk 0:03:00.5]} 6... Bg4 {[%clk
0:02:54.6]} 7. h3 {[%clk 0:02:57.1]} 7... Bh5 {[%clk 0:02:54]} 8. Be2 {[%clk
0:02:51.3]} 8... e6 {[%clk 0:02:53.9]} 9. O-O {[%clk 0:02:50.7]} 9... Bd6 {[%clk
0:02:53.5]} 10. Bxd6 {[%clk 0:02:46.8]} 10... Qxd6 {[%clk 0:02:54.4]} 11. c3
{[%clk 0:02:44.5]} 11... O-O {[%clk 0:02:53.8]} 12. Re1 {[%clk 0:02:45.1]} 12...
Rab8 {[%clk 0:02:52.4]} 13. a4 {[%clk 0:02:44.7]} 13... a6 {[%clk 0:02:40.9]}
14. a5 {[%clk 0:02:44.6]} 14... Qc7 {[%clk 0:02:40.1]} 15. b4 {[%clk 0:02:40.7]}
15... Bxf3 {[%clk 0:02:09.4]} 16. Bxf3 {[%clk 0:02:36.7]} 16... e5 {[%clk
0:02:08.5]} 17. Nb3 {[%clk 0:02:27.8]} 17... e4 {[%clk 0:02:04.4]} 18. Be2
{[%clk 0:02:27.1]} 18... Ne7 {[%clk 0:01:43.7]} 19. Nc5 {[%clk 0:02:25.5]} 19...
Ng6 {[%clk 0:01:41.6]} 20. Qd2 {[%clk 0:02:23.4]} 20... Rbd8 {[%clk 0:01:36.8]}
21. Reb1 {[%clk 0:02:08.9]} 21... Ne8 {[%clk 0:01:34.3]} 22. b5 {[%clk
0:02:07.9]} 22... axb5 {[%clk 0:01:31.8]} 23. Rxb5 {[%clk 0:02:07.2]} 23... Nd6
{[%clk 0:01:31.5]} 24. Rb6 {[%clk 0:01:52.7]} 24... Rfe8 {[%clk 0:01:25.2]} 25.
Rab1 {[%clk 0:01:48.6]} 25... h6 {[%clk 0:01:22.5]} 26. Nxb7 {[%clk 0:01:46]}
26... Nxb7 {[%clk 0:01:21.7]} 27. Rxb7 {[%clk 0:01:46.9]} 27... Qxa5 {[%clk
0:01:21.9]} 28. R1b5 {[%clk 0:01:38.4]} 28... Qa3 {[%clk 0:01:14.8]} 29. Bh5
{[%clk 0:01:30.7]} 29... Re6 {[%clk 0:01:09.3]} 30. Rb3 {[%clk 0:01:19.2]} 30...
Qd6 {[%clk 0:00:56.8]} 31. Ra7 {[%clk 0:01:13]} 31... Rf8 {[%clk 0:00:34.9]} 32.
Rbb7 {[%clk 0:01:12.7]} 32... Rf6 {[%clk 0:00:33]} 33. Rd7 {[%clk 0:01:03.9]}
33... Qf4 {[%clk 0:00:24.1]} 34. Qe3 {[%clk 0:00:52.2]} 34... Qh4 {[%clk
0:00:19.8]} 35. Bxg6 {[%clk 0:00:46.8]} 35... Rxg6 {[%clk 0:00:19.6]} 36. Rxd5
{[%clk 0:00:45.2]} 36... f5 {[%clk 0:00:17.5]} 37. Kh2 {[%clk 0:00:29.7]} 37...
Kh8 {[%clk 0:00:16.9]} 38. g3 {[%clk 0:00:23]} 38... Qf6 {[%clk 0:00:16.2]} 39.
Qf4 {[%clk 0:00:21.5]} 39... Qc6 {[%clk 0:00:15.6]} 40. Rxf5 {[%clk 0:00:19.8]}
40... Rxf5 {[%clk 0:00:13.5]} 41. Qxf5 {[%clk 0:00:20.7]} 41... Rf6 {[%clk
0:00:13.3]} 42. Qc5 {[%clk 0:00:14.6]} 42... Rxf2+ {[%clk 0:00:12.6]} 43. Kg1
{[%clk 0:00:14.1]} 43... Qf6 {[%clk 0:00:11.9]} 44. Ra1 {[%clk 0:00:09.1]} 44...
Re2 {[%clk 0:00:10.5]} 45. Rf1 {[%clk 0:00:08.3]} 45... Qg6 {[%clk 0:00:10.9]}
46. Qc8+ {[%clk 0:00:07.9]} 46... Kh7 {[%clk 0:00:10.5]} 47. Qf5 {[%clk
0:00:08.3]} 47... Re3 {[%clk 0:00:10.3]} 48. Qxg6+ {[%clk 0:00:08.5]} 48... Kxg6
{[%clk 0:00:10.2]} 49. Rc1 {[%clk 0:00:09]} 49... Rxg3+ {[%clk 0:00:09.3]} 50.
Kf2 {[%clk 0:00:09.6]} 50... Rd3 {[%clk 0:00:10.2]} 51. Ke2 {[%clk 0:00:08.5]}
51... Kf5 {[%clk 0:00:09.9]} 52. Rf1+ {[%clk 0:00:05.3]} 52... Ke6 {[%clk
0:00:09.6]} 53. Rf4 {[%clk 0:00:04.7]} 53... Kd5 {[%clk 0:00:08.8]} 54. Rf5+
{[%clk 0:00:04.7]} 54... Kc4 {[%clk 0:00:09]} 55. Rc5+ {[%clk 0:00:05.3]} 55...
Kb3 {[%clk 0:00:08.6]} 56. d5 {[%clk 0:00:05.8]} 56... g5 {[%clk 0:00:06.9]} 57.
c4 {[%clk 0:00:05.2]} 57... Kb4 {[%clk 0:00:06.9]} 58. Rc6 {[%clk 0:00:05.4]}
58... h5 {[%clk 0:00:06.6]} 59. d6 {[%clk 0:00:05.8]} 59... g4 {[%clk
0:00:06.5]} 60. hxg4 {[%clk 0:00:06.6]} 60... hxg4 {[%clk 0:00:06.5]} 61. c5
{[%clk 0:00:06.1]} 61... g3 {[%clk 0:00:06.9]} 62. Rc7 {[%clk 0:00:04.6]} 62...
g2 {[%clk 0:00:07.1]} 63. Kf2 {[%clk 0:00:05]} 63... Rd2+ {[%clk 0:00:06.9]} 64.
Kg1 {[%clk 0:00:04.8]} 64... e3 {[%clk 0:00:07.3]} 65. Re7 {[%clk 0:00:02.4]}
65... Kxc5 {[%clk 0:00:07]} 66. Rxe3 {[%clk 0:00:02.3]} 66... Kxd6 {[%clk
0:00:07.2]} 67. Rg3 {[%clk 0:00:02.6]} 67... Ke5 {[%clk 0:00:07.3]} 68. Rxg2
{[%clk 0:00:03.2]} 68... Rxg2+ {[%clk 0:00:07]} 69. Kxg2 {[%clk 0:00:03.4]}
1/2-1/2